fUSD/lending_fUSD_20240712
["ID","MTS","AMOUNT","RATE_DAILY","PERIOD"]
[331852078,1720794654778,-500.0,0.00013862,2]
[331852080,1720794654787,-500.0,0.00013862,2]
[331852082,1720794654796,-500.0,0.00013862,2]
[331852084,1720794654806,-577.19,0.00013862,2]
[331852086,1720794654815,-560.07,0.00013862,2]
[331852088,1720794654825,-1091.77,0.00013862,2]
[331852090,1720794654834,-500.0,0.00013862,2]
[331852092,1720794654843,-500.0,0.00013862,2]
[331852094,1720794654853,-500.0,0.00013862,2]
[331852096,1720794654863,-500.0,0.00013862,2]
[331852098,1720794654873,-500.0,0.00013862,2]
[331852100,1720794654882,-500.0,0.00013862,2]
[331852101,1720794654892,-500.0,0.00013862,2]
[331852103,1720794654901,-500.0,0.00013862,2]
[331852105,1720794654911,-500.0,0.00013862,2]
[331852107,1720794654920,-500.0,0.00013862,2]
[331852109,1720794654929,-500.0,0.00013862,2]
[331852111,1720794654942,-500.0,0.00013862,2]
[331852113,1720794654952,-500.0,0.00013862,2]
[331852115,1720794654962,-558.7,0.00013862,2]
[331852117,1720794654974,-500.0,0.00013862,2]
[331852119,1720794654983,-420.81568716,0.00013862,2]
[331852121,1720794654992,-500.0,0.00013862,2]
[331852123,1720794655002,-500.0,0.00013862,2]
[331852125,1720794655012,-500.0,0.00013862,2]
[331852127,1720794655022,-500.0,0.00013862,2]
[331852129,1720794655031,-500.0,0.00013862,2]
[331852131,1720794655040,-500.0,0.00013862,2]
[331852133,1720794655050,-500.0,0.00013862,2]
[331852135,1720794655062,-500.0,0.00013862,2]
[331852137,1720794655073,-500.0,0.00013862,2]
[331852139,1720794655083,-500.0,0.00013862,2]
[331852141,1720794655092,-500.0,0.00013862,2]
[331852143,1720794655102,-500.0,0.00013862,2]
[331852145,1720794655111,-500.0,0.00013862,2]
[331852147,1720794655121,-566.18,0.00013862,2]
[331852149,1720794655130,-500.0,0.00013862,2]
[331852151,1720794655142,-500.0,0.00013862,2]
[331852153,1720794655151,-500.0,0.00013862,2]
[331852155,1720794655162,-500.0,0.00013862,2]
[331852157,1720794655171,-500.0,0.00013862,2]
[331852159,1720794655180,-500.0,0.00013862,2]
[331852161,1720794655191,-557.9,0.00013862,2]
[331852163,1720794655199,-500.0,0.00013862,2]
[331852165,1720794655209,-500.0,0.00013862,2]
[331852167,1720794655221,-500.0,0.00013862,2]
[331852169,1720794655231,-500.0,0.00013863,2]
[331852171,1720794655242,-524.11,0.00013863,2]
[331852173,1720794655252,-500.0,0.00013863,2]
[331852175,1720794655262,-500.0,0.00013863,2]
[331852177,1720794655271,-500.0,0.00013863,2]
[331852179,1720794655281,-291.86464264,0.00013863,2]
[331852181,1720794655290,-798.11,0.00013863,2]
[331852183,1720794655299,-500.0,0.00013863,2]
[331852185,1720794655308,-543.87,0.00013863,2]
[331852187,1720794655317,-500.0,0.00013863,2]
[331852189,1720794655326,-714.43,0.00013863,2]
[331852191,1720794655335,-174.4115841,0.00013863,2]
[331852193,1720794655345,-717.24,0.00013863,2]
[331852195,1720794655356,-500.0,0.00013863,2]
[331852198,1720794655366,-808.16,0.00013863,2]
[331852199,1720794655375,-574.63,0.00013863,2]
[331852201,1720794655384,-625.21,0.00013863,2]
[331852203,1720794655393,-945.63,0.00013863,2]
[331852205,1720794655402,-500.0,0.00013863,2]
[331852206,1720794655411,-500.0,0.00013863,2]
[331852209,1720794655421,-500.0,0.00013863,2]
[331852211,1720794655430,-500.0,0.00013863,2]
[331852213,1720794655441,-500.0,0.00013863,2]
[331852215,1720794655450,-500.0,0.00013863,2]
[331852217,1720794655459,-677.22,0.00013863,2]
[331852219,1720794655468,-500.0,0.00013863,2]
[331852220,1720794655478,-500.0,0.00013863,2]
[331852222,1720794655486,-500.0,0.00013863,2]
[331852224,1720794655496,-500.0,0.00013863,2]
[331852226,1720794655505,-606.5746361,0.00013863,2]
[331852228,1720794655514,-567.5,0.00013863,2]
[331852230,1720794655523,-799.61,0.00013863,2]
[331852232,1720794655532,-500.0,0.00013863,2]
[331852234,1720794655541,-500.0,0.00013863,2]
[331852236,1720794655550,-500.0,0.00013863,2]
[331852238,1720794655559,-500.0,0.00013863,2]
[331852240,1720794655569,-500.0,0.00013863,2]
[331852242,1720794655578,-743.72,0.00013863,2]
[331852244,1720794655588,-500.0,0.00013863,2]
[331852246,1720794655597,-500.0,0.00013863,2]
[331852248,1720794655606,-500.0,0.00013863,2]
[331852250,1720794655615,-500.0,0.00013863,2]
[331852252,1720794655624,-500.0,0.00013863,2]
[331852254,1720794655633,-500.0,0.00013863,2]
[331852256,1720794655642,-500.0,0.00013863,2]
[331852258,1720794655651,-500.0,0.00013863,2]
[331852260,1720794655660,-608.66,0.00013863,2]
[331852262,1720794655669,-500.0,0.00013863,2]
[331852264,1720794655680,-500.0,0.00013863,2]
[331852266,1720794655691,-500.0,0.00013863,2]
[331852268,1720794655701,-785.46,0.00013863,2]
[331852270,1720794655710,-398.6,0.00013863,2]
[331852272,1720794655719,-506.96,0.00013863,2]
[331852274,1720794655728,-500.0,0.00013863,2]
[331852276,1720794655737,-523.01,0.00013863,2]
[331852278,1720794655747,-532.23,0.00013863,2]
[331852280,1720794655755,-659.11,0.00013863,2]
[331852282,1720794655765,-500.0,0.00013863,2]
[331852284,1720794655774,-928.6,0.00013863,2]
[331852286,1720794655783,-500.0,0.00013863,2]
[331852288,1720794655792,-500.0,0.00013863,2]
[331852290,1720794655801,-857.04,0.00013863,2]
[331852292,1720794655811,-536.84,0.00013863,2]
[331852294,1720794655820,-1012.71,0.00013863,2]
[331852296,1720794655829,-500.0,0.00013863,2]
[331852298,1720794655839,-500.0,0.00013863,2]
[331852300,1720794655848,-582.20120353,0.00013863,2]
[331852302,1720794655858,-500.0,0.00013863,2]
[331852304,1720794655867,-787.1,0.00013863,2]
[331852305,1720794655876,-500.0,0.00013863,2]
[331852307,1720794655885,-880.19,0.00013863,2]
[331852309,1720794655894,-500.0,0.00013863,2]
[331852311,1720794655903,-545.56,0.00013863,2]
[331852313,1720794655912,-500.0,0.00013863,2]
[331852315,1720794655922,-714.66,0.00013863,2]
[331852317,1720794655931,-500.0,0.00013863,2]
[331852319,1720794655945,-500.0,0.00013863,2]
[331852321,1720794655955,-500.0,0.00013863,2]
[331852323,1720794655965,-500.0,0.00013863,2]
[331852326,1720794655974,-500.0,0.00013863,2]
[331852328,1720794655985,-633.29,0.00013863,2]
[331852330,1720794655995,-728.52,0.00013863,2]
[331852332,1720794656004,-500.0,0.00013863,2]
[331852334,1720794656013,-500.0,0.00013863,2]
[331852336,1720794656023,-500.0,0.00013863,2]
[331852338,1720794656033,-669.08,0.00013863,2]
[331852340,1720794656043,-500.0,0.00013863,2]
[331852342,1720794656052,-500.0,0.00013863,2]
[331852344,1720794656063,-500.0,0.00013863,2]
[331852346,1720794656074,-718.04,0.00013863,2]
[331852348,1720794656083,-500.0,0.00013863,2]
[331852349,1720794656092,-500.0,0.00013863,2]
[331852351,1720794656103,-500.0,0.00013863,2]
[331852353,1720794656112,-491.82109132,0.00013863,2]
[331852356,1720794656122,-500.0,0.00013863,2]
[331852357,1720794656131,-500.0,0.00013863,2]
[331852359,1720794656141,-500.0,0.00013863,2]
[331852361,1720794656150,-322.14049422,0.00013863,2]
[331852363,1720794656159,-500.0,0.00013863,2]
[331852365,1720794656168,-662.74,0.00013863,2]
[331852367,1720794656177,-500.0,0.00013863,2]
[331852369,1720794656191,-605.31,0.00013863,2]
[331852371,1720794656200,-612.82,0.00013863,2]
[331852373,1720794656209,-500.0,0.00013863,2]
[331852375,1720794656218,-564.04,0.00013863,2]
[331852377,1720794656228,-189.23721268,0.00013863,2]
[331852379,1720794656238,-840.15,0.00013863,2]
[331852381,1720794656247,-500.0,0.00013863,2]
[331852382,1720794656256,-883.19,0.00013863,2]
[331852384,1720794656265,-976.09,0.00013863,2]
[331852386,1720794656275,-500.0,0.00013863,2]
[331852388,1720794656284,-518.94,0.00013863,2]
[331852390,1720794656294,-362.33745176,0.00013863,2]
[331852392,1720794656303,-500.0,0.00013863,2]
[331852394,1720794656313,-500.0,0.00013863,2]
[331852396,1720794656322,-804.2,0.00013863,2]
[331852398,1720794656332,-861.95,0.00013863,2]
[331852400,1720794656341,-642.51,0.00013863,2]
[331852402,1720794656350,-695.85,0.00013863,2]
[331852404,1720794656360,-595.38,0.00013863,2]
[331852406,1720794656369,-947.63,0.00013863,2]
[331852408,1720794656378,-500.0,0.00013863,2]
[331852410,1720794656387,-500.0,0.00013863,2]
[331852412,1720794656396,-500.0,0.00013863,2]
[331852414,1720794656406,-500.0,0.00013863,2]
[331852416,1720794656415,-505.8,0.00013863,2]
[331852418,1720794656425,-594.81,0.00013863,2]
[331852420,1720794656443,-1155.19,0.00013863,2]
[331852421,1720794656453,-544.81,0.00013863,2]
[331852422,1720794656462,-666.89,0.00013863,2]
[331852423,1720794656472,-666.06,0.00013863,2]
[331852424,1720794656481,-500.0,0.00013863,2]
[331852425,1720794656490,-500.0,0.00013863,2]
[331852426,1720794656500,-500.0,0.00013863,2]
[331852427,1720794656509,-500.0,0.00013863,2]
[331852428,1720794656518,-574.05,0.00013863,2]
[331852429,1720794656528,-713.58,0.00013863,2]
[331852430,1720794656537,-523.05,0.00013863,2]
[331852431,1720794656546,-563.94,0.00013863,2]
[331852432,1720794656555,-500.0,0.00013863,2]
[331852433,1720794656564,-500.0,0.00013863,2]
[331852434,1720794656573,-500.0,0.00013863,2]
[331852436,1720794656583,-520.25,0.00013863,2]
[331852438,1720794656592,-712.83,0.00013863,2]
[331852456,1720794656757,-323.45422938,0.00013863,2]
[331852458,1720794656767,-821.92,0.00013863,2]
[331852460,1720794656777,-1374.04,0.00013863,2]
[331852462,1720794656786,-500.0,0.00013863,2]
[331852464,1720794656797,-500.0,0.00013863,2]
[331852466,1720794656806,-687.92,0.00013863,2]
[331852468,1720794656815,-883.42,0.00013863,2]
[331852470,1720794656825,-517.54,0.00013863,2]
[331852472,1720794656834,-667.83,0.00013863,2]
[331852474,1720794656843,-500.0,0.00013863,2]
[331852476,1720794656854,-1125.56,0.00013863,2]
[331852478,1720794656864,-804.76,0.00013863,2]
[331852480,1720794656873,-500.0,0.00013863,2]
[331852482,1720794656883,-500.0,0.00013863,2]
[331852484,1720794656893,-500.0,0.00013863,2]
[331852486,1720794656903,-861.99,0.00013863,2]
[331852488,1720794656913,-500.0,0.00013863,2]
[331852490,1720794656922,-500.0,0.00013863,2]
[331852492,1720794656933,-1018.26,0.00013863,2]
[331852494,1720794656943,-500.0,0.00013863,2]
[331852496,1720794656953,-833.97,0.00013863,2]
[331852498,1720794656962,-500.0,0.00013863,2]
[331852500,1720794656971,-1246.88,0.00013863,2]
[331852502,1720794656981,-500.0,0.00013863,2]
[331852504,1720794656990,-453.93,0.00013863,2]
[331852506,1720794657000,-500.0,0.00013863,2]
[331852508,1720794657009,-500.0,0.00013863,2]
[331852510,1720794657019,-743.04,0.00013863,2]
[331852512,1720794657028,-500.0,0.00013863,2]
[331852514,1720794657037,-627.82,0.00013863,2]
[331852517,1720794657055,-500.0,0.00013863,2]
[331852519,1720794657070,-500.0,0.00013863,2]
[331852521,1720794657080,-789.19,0.00013863,2]
[331852523,1720794657090,-564.93,0.00013863,2]
[331852526,1720794657101,-500.0,0.00013863,2]
[331852528,1720794657110,-500.0,0.00013863,2]
[331852530,1720794657120,-872.58,0.00013863,2]
[331852532,1720794657130,-631.32,0.00013863,2]
[331852534,1720794657140,-500.0,0.00013863,2]
[331852536,1720794657153,-500.0,0.00013863,2]
[331852538,1720794657164,-500.0,0.00013863,2]
[331852540,1720794657174,-500.0,0.00013863,2]
[331852542,1720794657184,-500.0,0.00013863,2]
[331852544,1720794657194,-235.637658,0.00013863,2]
[331852546,1720794657204,-181.45451415,0.00013863,2]
[331852548,1720794657213,-1303.41,0.00013863,2]
[331852550,1720794657223,-987.74,0.00013863,2]
[331852552,1720794657233,-1057.82,0.00013863,2]
[331852555,1720794657243,-500.0,0.00013863,2]
[331852557,1720794657252,-500.0,0.00013863,2]
[331852559,1720794657262,-500.0,0.00013863,2]
[331852561,1720794657272,-500.0,0.00013863,2]
[331852563,1720794657282,-741.61,0.00013863,2]
[331852565,1720794657292,-500.0,0.00013863,2]
[331852567,1720794657302,-546.31,0.00013863,2]
[331852569,1720794657311,-482.33236701,0.00013863,2]
[331852571,1720794657321,-759.54,0.00013863,2]
[331852573,1720794657331,-675.64,0.00013863,2]
[331852575,1720794657341,-1372.87,0.00013863,2]
[331852577,1720794657350,-500.0,0.00013863,2]
[331852579,1720794657360,-500.0,0.00013863,2]
[331852581,1720794657371,-500.0,0.00013863,2]
[331852583,1720794657381,-507.78,0.00013863,2]
[331852585,1720794657391,-851.8,0.00013863,2]
[331852588,1720794657400,-500.0,0.00013863,2]
[331852590,1720794657410,-1083.36,0.00013863,2]
[331852592,1720794657421,-500.0,0.00013863,2]
[331852594,1720794657430,-500.0,0.00013863,2]
[331852596,1720794657443,-500.0,0.00013863,2]
[331852598,1720794657453,-519.29,0.00013863,2]
[331852600,1720794657462,-500.0,0.00013863,2]
[331852602,1720794657472,-733.47,0.00013863,2]
[331852604,1720794657482,-500.0,0.00013863,2]
[331852606,1720794657492,-500.0,0.00013863,2]
[331852608,1720794657502,-628.29,0.00013863,2]
[331852610,1720794657511,-500.0,0.00013863,2]
[331852612,1720794657521,-500.0,0.00013863,2]
[331852614,1720794657531,-500.0,0.00013863,2]
[331852616,1720794657541,-500.0,0.00013863,2]
[331852618,1720794657551,-1269.7,0.00013863,2]
[331852620,1720794657561,-500.0,0.00013863,2]
[331852622,1720794657571,-1162.35,0.00013863,2]
[331852624,1720794657581,-500.0,0.00013863,2]
[331852626,1720794657590,-500.0,0.00013863,2]
[331852628,1720794657600,-1140.36,0.00013863,2]
[331852630,1720794657610,-500.0,0.00013863,2]
[331852632,1720794657620,-500.0,0.00013863,2]
[331852634,1720794657630,-988.4,0.00013863,2]
[331852636,1720794657639,-1188.5,0.00013863,2]
[331852638,1720794657649,-582.01,0.00013863,2]
[331852640,1720794657659,-742.99,0.00013863,2]
[331852642,1720794657670,-500.0,0.00013863,2]
[331852645,1720794657680,-500.0,0.00013863,2]
[331852647,1720794657692,-782.48,0.00013863,2]
[331852649,1720794657702,-500.0,0.00013863,2]
[331852651,1720794657712,-500.0,0.00013863,2]
[331852653,1720794657722,-641.89,0.00013863,2]
[331852655,1720794657732,-500.0,0.00013863,2]
[331852657,1720794657742,-471.63221489,0.00013863,2]
[331852659,1720794657752,-500.0,0.00013863,2]
[331852661,1720794657761,-500.0,0.00013863,2]
[331852663,1720794657771,-648.56,0.00013863,2]
[331852665,1720794657781,-621.66,0.00013863,2]
[331852667,1720794657791,-500.0,0.00013863,2]
[331852669,1720794657800,-500.0,0.00013863,2]
[331852671,1720794657811,-837.4,0.00013863,2]
[331852673,1720794657821,-500.0,0.00013863,2]
[331852675,1720794657831,-1217.56,0.00013863,2]
[331852677,1720794657841,-500.0,0.00013863,2]
[331852679,1720794657851,-819.84,0.00013863,2]
[331852681,1720794657860,-500.0,0.00013863,2]
[331852684,1720794657871,-500.0,0.00013863,2]
[331852686,1720794657881,-1064.23,0.00013863,2]
[331852688,1720794657890,-500.0,0.00013863,2]
[331852690,1720794657900,-500.0,0.00013863,2]
[331852692,1720794657910,-4271.54,0.00013863,2]
[331852694,1720794657920,-1838.14,0.00013863,2]
[331852696,1720794657930,-500.0,0.00013863,2]
[331852698,1720794657948,-989.52,0.00013863,2]
[331852700,1720794657958,-500.0,0.00013863,2]
[331852702,1720794657968,-500.0,0.00013863,2]
[331852704,1720794657978,-1038.55,0.00013863,2]
[331852706,1720794657987,-835.73,0.00013863,2]
[331852708,1720794657997,-500.0,0.00013863,2]
[331852710,1720794658007,-720.1,0.00013863,2]
[331852712,1720794658017,-500.0,0.00013863,2]
[331852714,1720794658026,-903.17,0.00013863,2]
[331852716,1720794658036,-948.98,0.00013863,2]
[331852718,1720794658046,-852.64,0.00013863,2]
[331852720,1720794658055,-500.0,0.00013863,2]
[331852722,1720794658066,-500.0,0.00013863,2]
[331852724,1720794658078,-500.0,0.00013863,2]
[331852726,1720794658087,-500.0,0.00013863,2]
[331852728,1720794658097,-540.42,0.00013863,2]
[331852730,1720794658107,-2299.04,0.00013863,2]
[331852733,1720794658117,-500.0,0.00013863,2]
[331852735,1720794658127,-1111.09,0.00013863,2]
[331852736,1720794658136,-847.27,0.00013863,2]
[331852738,1720794658145,-500.0,0.00013863,2]
[331852740,1720794658156,-500.0,0.00013863,2]
[331852743,1720794658166,-563.5,0.00013863,2]
[331852745,1720794658177,-1080.3,0.00013863,2]
[331852747,1720794658191,-500.0,0.00013863,2]
[331852749,1720794658201,-500.0,0.00013863,2]
[331852751,1720794658210,-226.75513698,0.00013863,2]
[331852753,1720794658220,-1087.76,0.00013863,2]
[331852755,1720794658229,-792.46,0.00013863,2]
[331852757,1720794658239,-777.64,0.00013863,2]
[331852759,1720794658248,-500.0,0.00013863,2]
[331852761,1720794658258,-500.0,0.00013863,2]
[331852763,1720794658267,-859.86,0.00013863,2]
[331852765,1720794658277,-595.98,0.00013863,2]
[331852767,1720794658286,-500.0,0.00013863,2]
[331852769,1720794658295,-500.0,0.00013863,2]
[331852771,1720794658305,-966.7,0.00013863,2]
[331852773,1720794658315,-770.6,0.00013863,2]
[331852775,1720794658324,-500.0,0.00013863,2]
[331852777,1720794658333,-955.42,0.00013863,2]
[331852779,1720794658343,-1183.71,0.00013863,2]
[331852781,1720794658352,-1241.85,0.00013863,2]
[331852783,1720794658361,-500.0,0.00013863,2]
[331852784,1720794658371,-1004.68,0.00013863,2]
[331852787,1720794658380,-500.0,0.00013863,2]
[331852789,1720794658389,-500.0,0.00013863,2]
[331852791,1720794658399,-1077.37,0.00013863,2]
[331852792,1720794658408,-500.0,0.00013863,2]
[331852794,1720794658417,-1386.2,0.00013863,2]
[331852796,1720794658427,-500.0,0.00013863,2]
[331852799,1720794658441,-500.0,0.00013863,2]
[331852800,1720794658451,-500.0,0.00013863,2]
[331852802,1720794658460,-581.34,0.00013863,2]
[331852805,1720794658470,-500.0,0.00013863,2]
[331852807,1720794658480,-500.0,0.00013863,2]
[331852809,1720794658489,-500.0,0.00013863,2]
[331852811,1720794658499,-500.0,0.00013863,2]
[331852813,1720794658508,-533.16,0.00013863,2]
[331852815,1720794658518,-1428.78,0.00013863,2]
[331852817,1720794658527,-500.0,0.00013863,2]
[331852819,1720794658537,-742.08,0.00013863,2]
[331852821,1720794658546,-1248.36,0.00013863,2]
[331852823,1720794658555,-1524.13,0.00013863,2]
[331852825,1720794658565,-500.0,0.00013863,2]
[331852827,1720794658575,-1206.67,0.00013863,2]
[331852829,1720794658585,-500.0,0.00013863,2]
[331852831,1720794658595,-500.0,0.00013863,2]
[331852833,1720794658604,-765.74,0.00013863,2]
[331852834,1720794658614,-500.0,0.00013863,2]
[331852837,1720794658624,-500.0,0.00013863,2]
[331852838,1720794658633,-500.0,0.00013863,2]
[331852840,1720794658642,-654.42,0.00013863,2]
[331852842,1720794658651,-1158.32,0.00013863,2]
[331852844,1720794658661,-500.0,0.00013863,2]
[331852846,1720794658670,-517.72,0.00013863,2]
[331852848,1720794658680,-985.8,0.00013863,2]
[331852851,1720794658692,-1158.97,0.00013863,2]
[331852853,1720794658701,-1303.35,0.00013863,2]
[331852854,1720794658711,-642.75,0.00013863,2]
[331852856,1720794658720,-500.0,0.00013863,2]
[331852858,1720794658729,-675.59,0.00013863,2]
[331852860,1720794658739,-500.0,0.00013863,2]
[331852862,1720794658749,-953.14,0.00013863,2]
[331852864,1720794658758,-1174.91,0.00013863,2]
[331852866,1720794658768,-500.0,0.00013863,2]
[331852868,1720794658778,-502.48,0.00013863,2]
[331852870,1720794658787,-500.0,0.00013863,2]
[331852872,1720794658797,-712.64,0.00013863,2]
[331852874,1720794658807,-1198.74,0.00013863,2]
[331852876,1720794658816,-839.78,0.00013863,2]
[331852878,1720794658827,-504.32,0.00013863,2]
[331852880,1720794658836,-500.0,0.00013863,2]
[331852883,1720794658846,-500.0,0.00013863,2]
[331852885,1720794658856,-1168.03,0.00013863,2]
[331852887,1720794658868,-500.0,0.00013863,2]
[331852889,1720794658878,-500.0,0.00013863,2]
[331852891,1720794658888,-1010.06,0.00013863,2]
[331852893,1720794658897,-642.47,0.00013863,2]
[331852895,1720794658906,-748.91,0.00013863,2]
[331852897,1720794658917,-551.78,0.00013863,2]
[331852899,1720794658927,-523.44,0.00013863,2]
[331852901,1720794658938,-500.0,0.00013863,2]
[331852903,1720794658948,-500.0,0.00013863,2]
[331852905,1720794658959,-500.0,0.00013863,2]
[331852907,1720794658968,-822.71,0.00013863,2]
[331852909,1720794658977,-500.0,0.00013863,2]
[331852911,1720794658987,-500.0,0.00013863,2]
[331852913,1720794658997,-697.55,0.00013863,2]
[331852915,1720794659007,-500.0,0.00013863,2]
[331852917,1720794659016,-500.0,0.00013863,2]
[331852919,1720794659025,-500.0,0.00013863,2]
[331852921,1720794659035,-500.0,0.00013863,2]
[331852923,1720794659044,-712.55,0.00013863,2]
[331852925,1720794659054,-500.0,0.00013863,2]
[331852927,1720794659069,-1375.16,0.00013863,2]
[331852929,1720794659079,-500.0,0.00013863,2]
[331852931,1720794659090,-1385.78,0.00013863,2]
[331852933,1720794659101,-894.92,0.00013863,2]
[331852935,1720794659113,-1435.7,0.00013863,2]
[331852937,1720794659123,-500.0,0.00013863,2]
[331852938,1720794659133,-500.0,0.00013863,2]
[331852939,1720794659144,-500.0,0.00013863,2]
[331852940,1720794659155,-500.0,0.00013863,2]
[331852941,1720794659164,-768.75,0.00013863,2]
[331852942,1720794659173,-500.0,0.00013863,2]
[331852943,1720794659182,-716.79,0.00013863,2]
[331852944,1720794659192,-1100.08,0.00013863,2]
[331852945,1720794659201,-630.92,0.00013863,2]
[331852946,1720794659210,-675.75,0.00013863,2]
[331852947,1720794659219,-500.0,0.00013863,2]
[331852948,1720794659228,-500.0,0.00013863,2]
[331852949,1720794659238,-1202.91,0.00013863,2]
[331852951,1720794659247,-500.0,0.00013863,2]
[331852953,1720794659256,-566.06,0.00013863,2]
[331852955,1720794659266,-1310.79,0.00013863,2]
[331852957,1720794659275,-500.0,0.00013863,2]
[331852959,1720794659284,-500.0,0.00013863,2]
[331852961,1720794659294,-749.37,0.00013863,2]
[331852963,1720794659303,-511.15,0.00013863,2]
[331852965,1720794659313,-589.09,0.00013863,2]
[331852967,1720794659322,-500.0,0.00013863,2]
[331852969,1720794659333,-2219.16,0.00013863,2]
[331852971,1720794659343,-1072.56,0.00013863,2]
[331852973,1720794659352,-500.0,0.00013863,2]
[331852975,1720794659362,-500.0,0.00013863,2]
[331852977,1720794659371,-500.0,0.00013863,2]
[331852979,1720794659380,-6883.09,0.00013863,2]
[331852981,1720794659390,-500.0,0.00013863,2]
[331852983,1720794659399,-500.0,0.00013863,2]
[331852985,1720794659409,-1509.04,0.00013863,2]
[331852987,1720794659418,-1321.77,0.00013863,2]
[331852989,1720794659427,-636.44,0.00013863,2]
[331852991,1720794659441,-500.0,0.00013863,2]
[331852993,1720794659452,-500.0,0.00013863,2]
[331852995,1720794659461,-500.0,0.00013863,2]
[331852997,1720794659470,-500.0,0.00013863,2]
[331852999,1720794659480,-500.0,0.00013863,2]
[331853001,1720794659489,-500.0,0.00013863,2]
[331853003,1720794659498,-500.0,0.00013863,2]
[331853005,1720794659507,-2716.0,0.00013863,2]
[331853007,1720794659516,-5812.0,0.00013863,2]
[331853009,1720794659525,-56989.83176415,0.0001388,2]
[331853010,1720794659535,-802.996467,0.0001388,2]
[331853012,1720794659544,-381.14311,0.0001388,2]
[331853015,1720794659553,-162.62935,0.0001388,2]
[331853017,1720794659563,-273.286825,0.0001388,2]
[331853019,1720794659573,-150.071927,0.0001388,2]
[331853021,1720794659583,-253.08909,0.0001388,2]
[331853023,1720794659591,-374.353208,0.0001388,2]
[331853025,1720794659601,-229.993097,0.0001388,2]
[331853027,1720794659610,-155.43704552,0.00013889,2]
[331853029,1720794659619,-2843.74578093,0.00013897,2]
[331853047,1720794659788,-99000.0,0.00013899,2]
[331853049,1720794659798,-620529.942285,0.000139,2]
[331853052,1720794659808,-162.66784656,0.000139,2]
[331853054,1720794659817,-8004.12417532,0.000139,2]
[331853056,1720794659827,-150.762748,0.00013907,2]
[331853057,1720794659836,-169.279734,0.00013907,2]
[331853059,1720794659846,-153.372995,0.00013907,2]
[331853061,1720794659855,-153.372995,0.00013907,2]
[331853063,1720794659865,-287.358531,0.00013907,2]
[331853065,1720794659874,-283.91217,0.00013907,2]
[331853067,1720794659883,-170.698732,0.00013907,2]
[331853069,1720794659893,-153.942945,0.00013907,2]
[331853071,1720794659902,-289.218619,0.00013907,2]
[331853073,1720794659911,-545.291288,0.00013907,2]
[331853075,1720794659921,-281.988154,0.00013907,2]
[331853077,1720794659932,-260.13008,0.00013907,2]
[331853079,1720794659945,-173.531171,0.00013907,2]
[331853081,1720794659955,-193.868125,0.00013907,2]
[331853083,1720794659964,-178.625947,0.00013907,2]
[331853085,1720794659974,-481.79788,0.00013907,2]